lending/lending_fUSD_20251111
["ID","MTS","AMOUNT","RATE_DAILY","PERIOD"]
[393602262,1762842640673,-151.0,0.00030137,31]
[393602263,1762842640682,-162.579136,0.00030137,31]
[393602264,1762842640692,-151.0,0.00030137,31]
[393602265,1762842640701,-151.0,0.00030137,31]
[393602266,1762842640711,-151.0,0.00030137,31]
[393602267,1762842640720,-151.0,0.00030137,31]
[393602268,1762842640729,-151.0,0.00030137,31]
[393602269,1762842640739,-151.0,0.00030137,31]
[393602270,1762842640748,-151.0,0.00030137,31]
[393602271,1762842640758,-153.841238,0.00030137,31]
[393602272,1762842640768,-151.827469,0.00030137,31]
[393602273,1762842640777,-151.863638,0.00030137,31]
[393602274,1762842640795,-151.0,0.00030137,31]
[393602275,1762842640810,-151.0,0.00030137,31]
[393602276,1762842640819,-151.0,0.00030137,31]
[393602277,1762842640829,-151.0,0.00030137,31]
[393602278,1762842640840,-151.0,0.00030137,31]
[393602279,1762842640849,-153.35788,0.00030137,31]
[393602280,1762842640859,-277.135316,0.00030137,31]
[393602281,1762842640870,-151.0,0.00030137,31]
[393602282,1762842640881,-163.634048,0.00030137,31]
[393602283,1762842640891,-151.0,0.00030137,31]
[393602284,1762842640901,-151.0,0.00030137,31]
[393602285,1762842640911,-166.195446,0.00030137,31]
[393602286,1762842640921,-151.0,0.00030137,31]
[393602287,1762842640931,-151.0,0.00030137,31]
[393602288,1762842640940,-151.0,0.00030137,31]
[393602289,1762842640950,-151.0,0.00030137,31]
[393602290,1762842640959,-151.0,0.00030137,31]
[393602291,1762842640970,-151.0,0.00030137,31]
[393602292,1762842640981,-151.0,0.00030137,31]
[393602293,1762842640991,-151.0,0.00030137,31]
[393602294,1762842641001,-151.0,0.00030137,31]
[393602295,1762842641010,-151.0,0.00030137,31]
[393602296,1762842641020,-151.0,0.00030137,31]
[393602297,1762842641030,-151.0,0.00030137,31]
[393602298,1762842641039,-152.22385,0.00030137,31]
[393602299,1762842641049,-151.0,0.00030137,31]
[393602300,1762842641058,-151.0,0.00030137,31]
[393602301,1762842641068,-151.0,0.00030137,31]
[393602302,1762842641078,-151.0,0.00030137,31]
[393602303,1762842641089,-151.0,0.00030137,31]
[393602304,1762842641098,-286.46789,0.00030137,31]
[393602305,1762842641108,-151.0,0.00030137,31]
[393602306,1762842641118,-151.0,0.00030137,31]
[393602307,1762842641128,-151.0,0.00030137,31]
[393602308,1762842641138,-160.90585572,0.00030173,5]
[393602309,1762842641149,-593.32483781,0.00030173,5]
[393602310,1762842641158,-510.9176893,0.00030173,5]
[393602311,1762842641167,-502.53995618,0.00030173,5]
[393602312,1762842641181,-500.0,0.00030173,5]
[393602313,1762842641191,-320.7332621,0.00030173,5]
[393602314,1762842641200,-501.80740999,0.00030173,5]
[393602315,1762842641210,-505.14650434,0.00030173,5]
[393602316,1762842641219,-502.33592152,0.00030173,5]
[393602317,1762842641230,-328.47139195,0.00030173,5]
[393602318,1762842641240,-151.11,0.000302,7]
[393602319,1762842641250,-695.0,0.000302,30]
[393602320,1762842641260,-9224.32,0.000302,7]
[393602321,1762842641270,-3098.1,0.000302,2]
[393602322,1762842641280,-7589.72811133,0.00030222,2]
[393602323,1762842641290,-377.31,0.00030265,2]
[393602324,1762842641300,-150.0,0.00030271,7]
[393602325,1762842641310,-500.0,0.00030272,2]
[393602326,1762842641319,-500.0,0.00030272,2]
[393602327,1762842641329,-500.0,0.00030272,2]
[393602328,1762842641339,-500.0,0.00030272,2]
[393602329,1762842641348,-500.0,0.00030272,2]
[393602330,1762842641358,-1070.62,0.00030391,14]
[393602331,1762842641367,-152.0,0.00030398,2]
[393602332,1762842641378,-261.10495616,0.00030408,7]
[393602333,1762842641388,-500.0,0.00030409,2]
[393602334,1762842641398,-447.0,0.00030409,2]
[393602335,1762842641408,-500.0,0.00030409,2]
[393602336,1762842641418,-293.65862463,0.00030409,2]
[393602337,1762842641428,-500.0,0.00030409,2]
[393602338,1762842641438,-154.5,0.0003046,2]
[393602339,1762842641448,-206.08372508,0.0003047,2]
[393602340,1762842641458,-501.61817707,0.00030528,5]
[393602341,1762842641467,-502.15227908,0.00030528,5]
[393602342,1762842641478,-778.35238343,0.00030528,5]
[393602343,1762842641487,-377.32217667,0.00030528,5]
[393602344,1762842641497,-500.0,0.00030528,5]
[393602345,1762842641507,-502.39810073,0.00030528,5]
[393602346,1762842641517,-150.0,0.00030546,2]
[393602347,1762842641527,-500.0,0.00030546,2]
[393602348,1762842641537,-197.88342011,0.00030629,2]
[393602349,1762842641546,-1070.62,0.00030665,14]
[393602350,1762842641557,-500.0,0.00030683,2]
[393602351,1762842641571,-282.89504024,0.00030705,2]
[393602352,1762842641580,-1000.0,0.00030721,5]
[393602353,1762842641590,-605.38402433,0.00030742,5]
[393602354,1762842641600,-500.0,0.0003082,2]
[393602355,1762842641611,-763.39305,0.0003083,2]
[393602356,1762842641621,-211.0,0.0003084,30]
[393602357,1762842641631,-1070.62,0.00030939,14]
[393602358,1762842641641,-300.53727216,0.00030957,2]
[393602359,1762842641651,-264.37836761,0.00031061,7]
[393602360,1762842641662,-1070.62,0.00031213,14]
[393602361,1762842641671,-329.81666734,0.00031268,5]
[393602362,1762842641682,-211.15,0.00031392,30]
[393602363,1762842641692,-5075.249734,0.0003143,4]
[393602364,1762842641701,-1070.62,0.00031487,14]
[393602365,1762842641711,-151.58,0.00031551,2]
[393602366,1762842641721,-1000.0,0.000316,2]
[393602367,1762842641731,-399.47,0.000317,30]
[393602368,1762842641741,-1070.62,0.00031761,14]
[393602369,1762842641751,-763.39305,0.0003183,2]
[393602370,1762842641763,-1070.67,0.00032035,14]
[393602371,1762842641781,-3098.1,0.000321,2]
[393602373,1762842641794,-10108.34734634,0.00032439,2]
[393602375,1762842641808,-7589.72811133,0.00032506,2]
[393602377,1762842641818,-324.152,0.00032528,32]
[393602379,1762842641827,-2094.397,0.00032528,32]
[393602381,1762842641837,-1000.0,0.000326,7]
[393602383,1762842641847,-151.67676372,0.00032639,15]
[393602385,1762842641857,-9234.8076686,0.000327,7]
[393602387,1762842641867,-9224.32,0.000327,7]
[393602389,1762842641880,-500.0,0.00032704,2]
[393602391,1762842641890,-1000.0,0.00032714,2]
[393602393,1762842641899,-151.0,0.00032827,2]
[393602395,1762842641909,-763.39305,0.0003283,2]
[393602397,1762842641919,-211.0,0.0003286,30]
[393602399,1762842641928,-151.0,0.00032877,31]
[393602401,1762842641938,-151.0,0.00032877,30]
[393602402,1762842641948,-695.0,0.00033,30]
[393602404,1762842641958,-165.0,0.00033,14]
[393602406,1762842641968,-966.49601571,0.00033,2]
[393602408,1762842641977,-151.11,0.000331,14]
[393602410,1762842641987,-393.25,0.00033165,2]
[393602412,1762842641997,-151.58,0.00033304,2]
[393602414,1762842642007,-151.0,0.00033425,30]
[393602417,1762842642020,-211.15,0.00033459,30]
[393602418,1762842642030,-299.08,0.00033469,2]
[393602420,1762842642040,-1010.0,0.000336,7]
[393602422,1762842642050,-282.89504024,0.00033656,2]
[393602424,1762842642060,-763.39305,0.0003383,2]
[393602426,1762842642070,-1655.2002265,0.00034039,2]
[393602428,1762842642079,-7184.1199861,0.00034039,2]
[393602430,1762842642089,-27098.2970115,0.00034039,2]
[393602432,1762842642098,-820.0,0.00034041,2]
[393602434,1762842642107,-1597.0,0.00034041,2]
[393602437,1762842642118,-6664.0,0.00034041,2]
[393602439,1762842642129,-6470.0,0.00034041,2]
[393602441,1762842642139,-2143.0,0.00034041,2]
[393602443,1762842642148,-574.0,0.00034041,2]
[393602445,1762842642158,-3426.0,0.00034041,2]
[393602447,1762842642167,-167.85,0.00034065,2]
[393602448,1762842642176,-350.0,0.00034104,7]
[393602450,1762842642187,-881.6036025,0.00034121,2]
[393602452,1762842642197,-3098.1,0.000342,2]
[393602454,1762842642207,-350.0,0.00034241,7]
[393602456,1762842642216,-300.0,0.00034241,7]
[393602457,1762842642226,-350.0,0.00034378,7]
[393602458,1762842642236,-300.0,0.00034378,7]
[393602459,1762842642246,-5000.0,0.00034428,2]
[393602460,1762842642257,-1264.0,0.00034451,2]
[393602461,1762842642266,-500.0,0.00034476,7]
[393602462,1762842642278,-500.0,0.00034478,7]
[393602463,1762842642290,-800.0,0.00034478,7]
[393602464,1762842642300,-500.0,0.000345,7]
[393602465,1762842642311,-800.0,0.00034522,7]
[393602466,1762842642322,-500.0,0.00034559,7]
[393602467,1762842642333,-500.0,0.0003457,7]
[393602468,1762842642345,-800.0,0.00034574,7]
[393602469,1762842642356,-9224.32,0.000346,14]
[393602470,1762842642365,-800.0,0.0003461,7]
[393602471,1762842642377,-1242.0,0.00034613,7]
[393602472,1762842642387,-151.0,0.00034613,7]
[393602473,1762842642397,-1242.0,0.00034613,7]
[393602474,1762842642407,-151.0,0.00034613,7]
[393602475,1762842642417,-152.0,0.00034613,7]
[393602477,1762842642427,-1242.0,0.00034613,7]
[393602479,1762842642437,-151.0,0.00034613,7]
[393602480,1762842642447,-152.0,0.00034613,7]
[393602482,1762842642456,-1242.0,0.00034613,7]
[393602484,1762842642466,-151.0,0.00034613,7]
[393602486,1762842642476,-152.0,0.00034613,7]
[393602488,1762842642486,-1242.0,0.00034613,7]
[393602490,1762842642496,-151.0,0.00034613,7]
[393602492,1762842642506,-151.16701834,0.00034613,7]
[393602495,1762842642517,-152.0,0.00034613,7]
[393602497,1762842642527,-1242.0,0.00034613,7]
[393602499,1762842642536,-151.0,0.00034613,7]
[393602500,1762842642546,-152.0,0.00034613,7]
[393602525,1762842642763,-820.28360877,0.00034613,7]
[393602527,1762842642774,-151.0,0.00034613,7]
[393602529,1762842642784,-152.0,0.00034613,7]
[393602531,1762842642796,-151.0,0.00034613,7]
[393602533,1762842642806,-152.0,0.00034613,7]
[393602535,1762842642815,-151.0,0.00034613,7]
[393602537,1762842642824,-152.0,0.00034613,7]
[393602539,1762842642833,-250.38392195,0.00034613,7]
[393602541,1762842642844,-151.0,0.00034613,7]
[393602543,1762842642852,-152.0,0.00034613,7]
[393602545,1762842642862,-151.0,0.00034613,7]
[393602547,1762842642872,-152.0,0.00034613,7]
[393602549,1762842642882,-151.0,0.00034613,7]
[393602551,1762842642891,-152.0,0.00034613,7]
[393602552,1762842642901,-151.0,0.00034613,7]
[393602554,1762842642910,-152.0,0.00034613,7]
[393602556,1762842642920,-151.0,0.00034613,7]
[393602558,1762842642930,-152.0,0.00034613,7]
[393602560,1762842642939,-151.0,0.00034613,7]
[393602563,1762842642949,-152.0,0.00034613,7]
[393602565,1762842642959,-151.0,0.00034613,7]
[393602567,1762842642968,-152.0,0.00034613,7]
[393602569,1762842642978,-151.0,0.00034613,7]
[393602571,1762842642987,-152.0,0.00034613,7]
[393602573,1762842642997,-151.0,0.00034613,7]
[393602575,1762842643008,-152.0,0.00034613,7]
[393602577,1762842643018,-151.0,0.00034613,7]
[393602579,1762842643028,-152.0,0.00034613,7]
[393602581,1762842643038,-151.0,0.00034613,7]
[393602583,1762842643048,-152.0,0.00034613,7]
[393602585,1762842643061,-199.3880896,0.00034613,7]
[393602587,1762842643071,-152.0,0.00034613,7]
[393602589,1762842643080,-152.0,0.00034613,7]
[393602591,1762842643089,-152.0,0.00034613,7]
[393602593,1762842643100,-222.71219546,0.00034613,7]
[393602595,1762842643110,-1242.0,0.00034613,7]
[393602597,1762842643119,-151.0,0.00034613,7]
[393602599,1762842643130,-1242.0,0.00034613,7]
[393602601,1762842643139,-151.0,0.00034613,7]
[393602603,1762842643149,-152.0,0.00034613,7]
[393602605,1762842643158,-1242.0,0.00034613,7]
[393602606,1762842643168,-151.0,0.00034613,7]
[393602607,1762842643178,-615.87690974,0.00034613,7]
[393602608,1762842643187,-152.0,0.00034613,7]
[393602609,1762842643197,-1242.0,0.00034613,7]
[393602610,1762842643206,-151.0,0.00034613,7]
[393602611,1762842643215,-1242.0,0.00034613,7]
[393602612,1762842643225,-151.0,0.00034613,7]
[393602613,1762842643235,-1242.0,0.00034613,7]
[393602614,1762842643245,-151.0,0.00034613,7]
[393602615,1762842643254,-1242.0,0.00034613,7]
[393602616,1762842643264,-151.0,0.00034613,7]
[393602617,1762842643274,-1242.0,0.00034613,7]
[393602618,1762842643284,-151.0,0.00034613,7]
[393602619,1762842643293,-1242.0,0.00034613,7]
[393602620,1762842643303,-151.0,0.00034613,7]
[393602621,1762842643314,-1242.0,0.00034613,7]
[393602622,1762842643324,-151.0,0.00034613,7]
[393602623,1762842643334,-1242.0,0.00034613,7]
[393602624,1762842643344,-152.0,0.00034613,7]
[393602625,1762842643354,-152.0,0.00034613,7]
[393602626,1762842643364,-152.0,0.00034613,7]
[393602627,1762842643373,-152.0,0.00034613,7]
[393602628,1762842643383,-500.0,0.00034623,7]
[393602629,1762842643392,-500.0,0.00034627,7]
[393602630,1762842643402,-500.0,0.00034627,7]
[393602631,1762842643411,-800.0,0.00034638,7]
[393602632,1762842643421,-500.0,0.00034642,7]
[393602633,1762842643430,-500.0,0.00034649,7]
[393602634,1762842643439,-502.29417655,0.00034673,5]
[393602635,1762842643453,-500.0,0.00034673,5]
[393602636,1762842643462,-503.45791664,0.00034673,5]
[393602637,1762842643471,-502.40345278,0.00034673,5]
[393602638,1762842643481,-150.12918919,0.00034673,5]
[393602639,1762842643490,-500.67483297,0.00034673,5]
[393602640,1762842643500,-500.0,0.00034673,5]
[393602641,1762842643510,-2994.91550426,0.00034673,5]
[393602642,1762842643519,-500.0,0.0003468,7]
[393602643,1762842643528,-500.0,0.00034683,7]
[393602644,1762842643538,-500.0,0.00034686,7]
[393602645,1762842643547,-800.0,0.00034702,7]
[393602646,1762842643557,-800.0,0.00034736,7]
[393602647,1762842643567,-500.0,0.00034736,7]
[393602648,1762842643577,-10108.34734634,0.00034746,2]
[393602649,1762842643587,-500.0,0.00034754,7]
[393602650,1762842643597,-800.0,0.00034773,7]
[393602651,1762842643607,-800.0,0.00034785,7]
[393602652,1762842643617,-7589.72811133,0.0003479,2]
[393602653,1762842643626,-835.59,0.00034791,30]
[393602654,1762842643636,-254.41762286,0.00034816,2]
[393602655,1762842643646,-763.39305,0.0003483,2]
[393602656,1762842643655,-500.0,0.00034848,7]
[393602657,1762842643665,-800.0,0.00034878,7]
[393602658,1762842643674,-211.0,0.0003488,30]
[393602659,1762842643684,-500.95275004,0.00034883,7]
[393602660,1762842643694,-500.0,0.00034885,7]
[393602661,1762842643705,-500.0,0.0003489,7]
[393602662,1762842643714,-369.3250916,0.0003491,2]
[393602663,1762842643724,-1602.993843,0.0003491,2]
[393602664,1762842643734,-286.0742802,0.0003491,2]
[393602665,1762842644011,-190.695002,0.00030135,30]
[393602666,1762842644020,-190.695002,0.00030137,30]
[393602667,1762842644029,-1317.0,0.00034041,2]
[393602668,1762842644039,-5760.3730717,0.0003491,2]
[393602669,1762842644048,-500.0,0.00034931,7]
[393602670,1762842644057,-500.0,0.00034965,7]
[393602671,1762842644068,-500.0,0.00034972,7]
[393602672,1762842644078,-162.0650034,0.00035011,2]
[393602673,1762842644087,-196.712353,0.00035011,2]
[393602674,1762842644096,-500.0,0.00035011,30]
[393602675,1762842644106,-800.0,0.00035024,30]
[393602676,1762842644115,-500.0,0.00035035,30]
[393602677,1762842644126,-500.0,0.00035037,30]
[393602678,1762842644135,-500.0,0.00035049,30]
[393602679,1762842644145,-169.13041583,0.00035051,30]
[393602680,1762842644155,-151.58,0.00035057,2]
[393602681,1762842644165,-167.85,0.00035057,2]
[393602682,1762842644174,-500.0,0.00035097,30]
[393602683,1762842644184,-695.0,0.000351,30]
[393602684,1762842644194,-55.68253886,0.00035108,30]
[393602685,1762842644205,-444.31746114,0.00035108,30]
[393602686,1762842644215,-250.0,0.00035114,2]
[393602687,1762842644224,-394.68253886,0.00035114,2]
[393602688,1762842644563,-1.7e-07,0.00030135,30]
[393602695,1762842644972,-190.69500183,0.00030135,30]
[393602696,1762842644982,-190.695002,0.00030135,30]
[393602697,1762842644991,-190.695002,0.00030135,30]
[393602698,1762842645001,-190.695002,0.00030137,30]
[393602699,1762842645010,-190.695002,0.00030137,30]
[393602700,1762842645019,-190.695002,0.00030137,30]
[393602701,1762842645029,-892.82278365,0.00032131,2]
[393602702,1762842645038,-105.31746114,0.00035114,2]
[393602703,1762842645048,-250.0,0.00035114,2]
[393602704,1762842645057,-500.0,0.00035114,2]
[393602705,1762842645066,-250.0,0.00035114,2]
[393602706,1762842645075,-578.20924308,0.00035114,2]
[393602707,1762842645084,-500.0,0.00035114,2]
[393602708,1762842645094,-380.4710348,0.00035114,2]
[393602709,1762842645103,-500.0,0.00035114,2]
[393602710,1762842645113,-500.0,0.00035114,2]
[393602711,1762842645123,-500.0,0.00035114,2]
[393602712,1762842645132,-500.0,0.00035114,2]
[393602713,1762842645142,-26.21065928,0.00035114,2]
[393602714,1762842645154,-124.78934072,0.00035114,2]
[393602715,1762842645164,-151.0,0.00035114,2]
[393602716,1762842645173,-151.0,0.00035114,2]
[393602717,1762842645183,-107.95893993,0.00035114,2]
[393602718,1762842645194,-43.04106007,0.00035114,2]
[393602719,1762842645203,-151.0,0.00035114,2]
[393602720,1762842645213,-238.0009962,0.00035114,2]
[393602721,1762842645222,-151.0,0.00035114,2]
[393602722,1762842645232,-500.0,0.00035157,30]
[393602723,1762842645242,-175.13363877,0.00035165,30]
[393602724,1762842645254,-624.86636123,0.00035165,30]
[393602725,1762842645263,-578.99370456,0.00035172,30]
[393602726,1762842645294,-10.65242298,0.00035172,30]
[393602727,1762842645308,-210.35387246,0.00035172,30]
[393602728,1762842645318,-255.08231605,0.000352,30]
[393602738,1762842645776,-892.82278365,0.00034607,2]
[393602739,1762842645786,-544.91768395,0.000352,30]
[393602740,1762842645796,-55.4907798,0.00035217,30]
[393602741,1762842645950,-744.5092202,0.00035217,30]
[393602742,1762842645960,-800.0,0.0003522,30]
[393602743,1762842645969,-150.6642498,0.00035221,5]
[393602744,1762842646123,-348.53622343,0.00035221,5]
[393602745,1762842646135,-520.75605094,0.00035221,5]
[393602746,1762842646145,-232.70772563,0.00035231,30]
[393602748,1762842664643,165.46386113,0.00019799,60]
[393602749,1762842668284,906.325429,7.945e-05,2]
[393602750,1762842681353,-258.36779592,0.00017999,2]
[393602751,1762842684341,-193.92457087,0.00017999,2]
[393602752,1762842686299,-47.70763321,0.00017999,2]
[393602753,1762842686322,-118.94371933,0.00017999,2]
[393602756,1762842971925,-406.57787883,0.00017999,2]
[393602757,1762842971954,-500.0,0.00017999,2]
[393602758,1762842971981,-500.0,0.00017999,2]
[393602759,1762842972002,-500.0,0.00017999,2]
[393602760,1762842972023,-500.0,0.00017999,2]
[393602761,1762842972048,-638.95883668,0.00017999,2]
[393602762,1762842972071,-319.95081928,0.00017999,2]
[393602829,1762843565907,250.0,0.00017,2]
[393602830,1762843604897,160.9,0.00022,30]
[393602833,1762843831879,-246.575777,0.00018,2]
[393602834,1762843831889,-169.850852,0.00018,2]
[393602835,1762843831899,-164.171912,0.00018,2]
[393602836,1762843831910,-151.0,0.000225,2]
[393602837,1762843831920,-151.0,0.00023,2]
[393602838,1762843831929,-246.575777,0.00023427,2]
[393602839,1762843831939,-169.850852,0.00023427,2]
[393602840,1762843831948,-164.171912,0.00023427,2]
[393602841,1762843831958,-151.0,0.00025,2]
[393602842,1762843831967,-151.0,0.000265,2]
[393602843,1762843831977,-246.575777,0.00028853,2]
[393602844,1762843831986,-169.850852,0.00028853,2]
[393602845,1762843831996,-164.171912,0.00028853,2]
[393602846,1762843832006,-150.0,0.000294,30]
[393602847,1762843832015,-151.0,0.0003,2]
[393602848,1762843832024,-470.25820178,0.0003,30]
[393602849,1762843832037,-529.74179822,0.0003,30]
[393602850,1762843832046,-339.75260614,0.00030003,4]
[393602851,1762843832058,-512.1694451,0.00030003,4]
[393602852,1762843832068,-66.42195718,0.00030027,2]
[393602853,1762843832086,-95.23235158,0.00030027,2]
[393602854,1762843832095,-469.84830631,0.00030072,2]
[393602855,1762843832104,-40433.38938536,0.00030073,2]
[393602856,1762843832115,-184.05080951,0.00030073,5]
[393602857,1762843832127,-10917.65313072,0.00030073,2]
[393602859,1762843832136,-2566.2205959,0.00030073,2]
[393602860,1762843832145,-765.32160894,0.00030073,2]
[393602861,1762843832155,-151.67676372,0.00030073,15]
[393602862,1762843832165,-287.90163417,0.00030073,2]
[393602863,1762843832174,-2647.713406,0.00030103,2]
[393602864,1762843832184,-1039.56,0.00030117,2]
[393602865,1762843832194,-246.575777,0.00030117,3]
[393602867,1762843832203,-169.850852,0.00030117,3]
[393602869,1762843832213,-164.171912,0.00030117,3]
[393602871,1762843832222,-264.37836761,0.00030124,7]
[393602873,1762843832231,-191.56736378,0.00030126,2]
[393602875,1762843832240,-197.18156896,0.00030126,2]
[393602877,1762843832249,-211.27655739,0.00030126,2]
[393602879,1762843832257,-500.0,0.00030126,2]
[393602881,1762843832267,-185.76319786,0.00030126,2]
[393602882,1762843832276,-282376.001557,0.00030127,3]
[393602884,1762843832286,-37472.0442554,0.00030127,3]
[393602885,1762843832295,-335.26698676,0.00030127,2]
[393602888,1762843832304,-335.26698676,0.00030127,2]
[393602891,1762843832313,-1039.56,0.00030127,2]
[393602894,1762843832327,-666.0,0.00030136,10]
[393602896,1762843832336,-550.0,0.00030136,2]
[393602898,1762843832345,-453914.99498541,0.00030137,120]
[393602901,1762843832357,-1298.81016622,0.00030137,120]
[393602903,1762843832368,-1181.79183029,0.00030137,120]
[393602906,1762843832387,-37828.72888254,0.00030137,120]
[393602907,1762843832398,-1100.22423549,0.00030137,120]
[393602909,1762843837911,-3420.91820773,0.00030137,120]
[393602910,1762843837979,-4427460.95069899,0.00030137,120]
[393602911,1762843837988,-500.0,0.00030142,2]
[393602912,1762843837998,-510.9176893,0.00030173,5]
[393602913,1762843838007,-500.0,0.00030173,5]
[393602914,1762843838016,-502.39810073,0.00030173,5]
[393602915,1762843838026,-502.15227908,0.00030173,5]
[393602916,1762843838036,-501.61817707,0.00030173,5]
[393602917,1762843838045,-500.0,0.00030173,5]
[393602918,1762843838055,-377.32217667,0.00030173,5]
[393602920,1762843838064,-780.8,0.000302,30]
[393602921,1762843838074,-9030.55,0.000302,7]
[393602922,1762843838085,-190.75,0.000302,7]
[393602923,1762843838095,-3116.35,0.000302,2]
[393602924,1762843838104,-150.0,0.00030283,2]
[393602925,1762843838115,-1000.0,0.000304,2]
[393602926,1762843838128,-278.35238343,0.00030721,5]
[393602927,1762843838138,-197.88342011,0.00030809,2]
[393602928,1762843838148,-220.4009006,0.00030985,2]
[393602929,1762843838159,-28232.4855214,0.00030985,2]
[393602930,1762843838169,-835.59,0.00031494,30]
[393602931,1762843838179,-86.23706627,0.0003162,2]
[393602933,1762843838191,-75.41724243,0.0003162,2]
[393602935,1762843838204,-151.0,0.000321,2]
[393602936,1762843838214,-76.27308757,0.000323,7]
[393602937,1762843840106,-410.28585585,0.00029973,2]
[393602938,1762843840118,-215.96589978,0.000323,7]
[393602939,1762843840173,-707.76101265,0.000323,7]
[393602940,1762843840183,-246.575777,0.0003258,3]
[393602941,1762843840192,-169.850852,0.0003258,3]
[393602942,1762843840202,-164.171912,0.0003258,3]
[393602943,1762843840211,-354.47,0.000326,30]
[393602944,1762843840220,-501.33611635,0.00032782,2]
[393602945,1762843840230,-172.0,0.00033,14]
[393602946,1762843840239,-161.6543087,0.00033212,2]
[393602947,1762843840248,-5000.0,0.0003323,2]
[393602948,1762843840258,-204.36,0.00033369,2]
[393602949,1762843840267,-450.0,0.000335,7]
[393602950,1762843840277,-190.75,0.000335,14]
[393602951,1762843840287,-2196.0700211,0.000335,2]
[393602962,1762843846012,-676.2513546,0.000335,2]
[393602963,1762843846025,-244.0286243,0.000335,2]
[393602964,1762843846034,-1317.0,0.00033581,2]
[393602965,1762843846044,-608.0,0.00033581,2]
[393602966,1762843846053,-574.0,0.00033581,2]
[393602967,1762843846063,-3426.0,0.00033581,2]
[393602968,1762843846072,-1597.0,0.00033581,2]
[393602969,1762843846082,-820.0,0.00033581,2]
[393602970,1762843846091,-5592.72966027,0.00033581,2]
[393602971,1762843846103,-758.14934782,0.00033581,2]
[393602972,1762843846114,-119.12099191,0.00033581,2]
[393602973,1762843846128,-6664.0,0.00033581,2]
[393602974,1762843846138,-2143.0,0.00033581,2]
[393602975,1762843846147,-1189.0,0.00033581,2]
[393602976,1762843846157,-906.0,0.00033581,2]
[393602977,1762843846167,-320.7332621,0.00033873,5]
[393602978,1762843846177,-593.32483781,0.00033873,5]
[393602979,1762843846186,-501.49013438,0.00033873,5]
[393602980,1762843846195,-200.0,0.00033873,5]
[393602981,1762843846205,-305.15522187,0.00033873,5]
[393602982,1762843846214,-502.33592152,0.00033873,5]
[393602983,1762843846223,-328.47139195,0.00033873,5]
[393602984,1762843846233,-1500.0,0.00033887,16]
[393602985,1762843846242,-2032.779,0.00033899,37]
[393602986,1762843846252,-259.322,0.00033899,37]
[393602988,1762843846261,-34971.27323847,0.000339,5]
[393602990,1762843846276,-2609.15763847,0.000339,5]
[393602991,1762843846285,-7766.3301007,0.000339,14]
[393602993,1762843846446,-459.58986104,0.000339,14]
[393603005,1762844080362,380.53,0.00013699,2]
[393603011,1762844696973,1828.29677373,0.00015,2]
[393603012,1762844720482,1800.0,0.00017,3]
[393603013,1762844805862,168.41,0.00016662,2]
[393603060,1762845032239,-447.75124803,0.00020087,2]
[393603061,1762845032251,-52.24875197,0.00020087,2]
[393603062,1762845032261,-158.5068257,0.00020187,2]
[393603063,1762845032271,-380.53,0.00020187,2]
[393603064,1762845032281,-168.41,0.00021998,2]
[393603065,1762845032291,-403.35070191,0.00026,2]
[393603066,1762845032302,-380.53,0.00026676,2]
[393603068,1762845032311,-168.41,0.00027335,2]